[Event "Floripa Super Blitz 2019"]
[Site "Florianopolis"]
[Date "2019.01.23"]
[Round "6"]
[White "Stamenkovic, Dragan"]
[Black "Rueda, Joaquin"]
[Result "1-0"]
[ECO "D03"]
[WhiteElo "2378"]
[BlackElo "1961"]
[Annotator "NA"]
[PlyCount "69"]
[EventDate "2019.01.23"]
[EventType "swiss"]
[EventCountry "BRA"]
[SourceTitle "playchess.com"]
[Source "ChessBase"]
[SourceQuality "1"]
[TimeControl "180+2"]

1. d4 {[%emt 0:00:00]} d5 {[%emt 0:00:00]} 2. Nf3 {[%emt 0:00:04]} Nf6 {[%emt 0:00:03]} 3. Bg5 {[%emt 0:00:03]} e6 {[%emt 0:00:04]} 4. e3 {[%emt 0:00:02]} c5 {[%emt 0:00:10]} 5. c3 {[%emt 0:00:03]} h6 {[%emt 0:00:02]} 6. Bh4 {[%emt 0:00:02]} Be7 {[%emt 0:00:08]} 7. Nbd2 {[%emt 0:00:02]} O-O {[%emt 0:00:03]} 8. Bd3 {[%emt 0:00:04]} Nc6 {[%emt 0:00:07]} 9. Ne5 {[%emt 0:00:15]} Qb6 {[%emt 0:00:48]} 10. Rb1 {[%emt 0:00:05]} cxd4 {[%emt 0:00:34]} 11. exd4 {[%emt 0:00:03]} Qc7 {[%emt 0:00:04]} 12. f4 {[%emt 0:00:06]} b6 {[%emt 0:00:14]} 13. O-O {[%emt 0:00:07]} Bb7 {[%emt 0:00:01]} 14. Qf3 {[%emt 0:00:11]} Nd7 {[%emt 0:00:12]} 15. Bg3 {[%emt 0:00:11]} Bd6 {[%emt 0:00:13]} 16. Rbe1 {[%emt 0:00:08]} Ne7 {[%emt 0:00:10]} 17. Bb5 {[%emt 0:00:25]} Nf6 {[%emt 0:00:07]} 18. Bd3 {[%emt 0:00:20]} Nf5 {[%emt 0:00:01]} 19. Bf2 {[%emt 0:00:01]} Be7 {[%emt 0:00:15]} 20. g4 {[%emt 0:00:11]} Nd6 {[%emt 0:00:00]} 21. f5 {[%emt 0:00:01]} Nfe4 {[%emt 0:00:05]} 22. Be3 {[%emt 0:00:08]} exf5 {[%emt 0:00:04]} 23. gxf5 {[%emt 0:00:04]} Bf6 {[%emt 0:00:06]} 24. Ng4 {[%emt 0:00:07]} Kh8 {[%emt 0:00:03]} 25. Bf4 {[%emt 0:00:02]} Qd7 {[%emt 0:00:02]} 26. Nxf6 {[%emt 0:00:14]} Nxf6 {[%emt 0:00:02]} 27. Be5 Nfe4 {[%emt 0:00:08]} 28. f6 {[%emt 0:00:10]} gxf6 {[%emt 0:00:02]} 29. Bxf6+ {[%emt 0:00:02]} Kh7 {[%emt 0:00:04]} 30. Kh1 {[%emt 0:00:17]} Rg8 {[%emt 0:00:01]} 31. Be5 {[%emt 0:00:10]} Qg4 {[%emt 0:00:02]} 32. Bxd6 {[%emt 0:00:07]} Qh4 {[%emt 0:00:02]} 33. Nxe4 {[%emt 0:00:05]} dxe4 34. Bxe4+ {[%emt 0:00:01]} Kh8 {[%emt 0:00:02]} 35. Bxb7 {[%emt 0:00:02]} 1-0

[Event "Floripa Super Blitz 2019"]
[Site "Florianopolis"]
[Date "2019.01.23"]
[Round "7"]
[White "Souza, Iago Henrique da Si"]
[Black "Stamenkovic, Dragan"]
[Result "1-0"]
[ECO "D04"]
[WhiteElo "2060"]
[BlackElo "2378"]
[Annotator "NA"]
[PlyCount "73"]
[EventDate "2019.01.23"]
[EventType "swiss"]
[EventCountry "BRA"]
[SourceTitle "playchess.com"]
[Source "ChessBase"]
[SourceQuality "1"]
[TimeControl "180+2"]

1. d4 {[%emt 0:00:00]} Nf6 {[%emt 0:00:00]} 2. Nf3 {[%emt 0:00:01]} d5 {[%emt 0:00:01]} 3. e3 {[%emt 0:00:02]} c6 {[%emt 0:00:10]} 4. Bd3 {[%emt 0:00:02]} Bg4 {[%emt 0:00:02]} 5. Nbd2 {[%emt 0:00:01]} e6 {[%emt 0:00:02]} 6. h3 {[%emt 0:00:02]} Bh5 {[%emt 0:00:00]} 7. O-O {[%emt 0:00:03]} Nbd7 8. b3 {[%emt 0:00:00]} Bd6 {[%emt 0:00:03]} 9. Bb2 {[%emt 0:00:00]} a5 {[%emt 0:00:03]} 10. a4 {[%emt 0:00:01]} O-O {[%emt 0:00:01]} 11. Qe1 {[%emt 0:00:01]} Qb8 {[%emt 0:00:29]} 12. e4 {[%emt 0:00:19]} dxe4 {[%emt 0:00:08]} 13. Nxe4 {[%emt 0:00:01]} Bxf3 {[%emt 0:00:06]} 14. gxf3 {[%emt 0:00:08]} Nd5 {[%emt 0:00:03]} 15. Nxd6 {[%emt 0:00:24]} Qxd6 {[%emt 0:00:01]} 16. Ba3 {[%emt 0:00:08]} Nb4 {[%emt 0:00:18]} 17. Bxh7+ {[%emt 0:00:14]} Kxh7 {[%emt 0:00:03]} 18. c3 {[%emt 0:00:01]} Qf4 {[%emt 0:00:23]} 19. cxb4 {[%emt 0:00:06]} Qxf3 {[%emt 0:00:07]} 20. bxa5 {[%emt 0:00:06]} Rh8 {[%emt 0:00:19]} 21. Qe3 {[%emt 0:00:07]} Qxe3 {[%emt 0:00:09]} 22. fxe3 {[%emt 0:00:01]} Kg8 {[%emt 0:00:01]} 23. Rf3 {[%emt 0:00:09]} Rxa5 {[%emt 0:00:01]} 24. Raf1 {[%emt 0:00:01]} f6 {[%emt 0:00:01]} 25. Bb4 {[%emt 0:00:35]} Rah5 {[%emt 0:00:09]} 26. Kg2 {[%emt 0:00:05]} Nb6 {[%emt 0:00:05]} 27. e4 {[%emt 0:00:04]} Rh4 {[%emt 0:00:08]} 28. Re1 {[%emt 0:00:17]} Kf7 {[%emt 0:00:02]} 29. Re2 {[%emt 0:00:15]} Rd8 {[%emt 0:00:03]} 30. Bc5 {[%emt 0:00:06]} Nd7 {[%emt 0:00:01]} 31. Bd6 {[%emt 0:00:10]} Nb6 {[%emt 0:00:15]} 32. Bc7 {[%emt 0:00:03]} Rxd4 {[%emt 0:00:03]} 33. Bxb6 {[%emt 0:00:01]} Rdxe4 {[%emt 0:00:01]} 34. Rd2 {[%emt 0:00:03]} g5 {[%emt 0:00:27]} 35. Rd7+ {[%emt 0:00:07]} Kg6 {[%emt 0:00:00]} 36. Bf2 {[%emt 0:00:17]} Rhf4 {[%emt 0:00:10]} 37. Rxb7 {[%emt 0:00:02]} 1-0

[Event "Floripa Super Blitz 2019"]
[Site "Florianopolis"]
[Date "2019.01.23"]
[Round "9"]
[White "Fier, Alexandr"]
[Black "Sunye Neto, Jaime"]
[Result "1-0"]
[ECO "B61"]
[WhiteElo "2540"]
[BlackElo "2446"]
[Annotator "ChessBase"]
[PlyCount "45"]
[EventDate "2019.01.23"]
[EventType "swiss"]
[EventCountry "BRA"]
[SourceTitle "playchess.com"]
[Source "ChessBase"]
[SourceQuality "1"]
[TimeControl "180+2"]

1. e4 {[%emt 0:00:00]} c5 {[%emt 0:00:02]} 2. Nf3 {[%emt 0:00:01]} d6 {[%emt 0:00:01]} 3. d4 {[%emt 0:00:01]} cxd4 {[%emt 0:00:01]} 4. Nxd4 {[%emt 0:00:01]} Nf6 {[%emt 0:00:01]} 5. Nc3 {[%emt 0:00:01]} Nc6 {[%emt 0:00:01]} 6. Bg5 {[%emt 0:00:02]} Bd7 {[%emt 0:00:02]} 7. Qd2 {[%emt 0:00:02]} Qa5 {[%emt 0:00:05]} 8. Nb3 {[%emt 0:00:11]} Qc7 {[%emt 0:00:02]} 9. O-O-O {[%emt 0:00:12]} a6 {[%emt 0:00:02]} 10. Bxf6 {[%emt 0:00:02]} gxf6 {[%emt 0:00:01]} 11. f4 {[%emt 0:00:01]} e6 {[%emt 0:00:02]} 12. Be2 {[%emt 0:00:01]} h5 {[%emt 0:00:05]} 13. Rhf1 {[%emt 0:00:01]} b5 {[%emt 0:00:13]} 14. Bf3 {[%emt 0:00:32]} Rc8 {[%emt 0:00:11]} 15. Kb1 {[%emt 0:00:01]} b4 {[%emt 0:00:10]} 16. Ne2 {[%emt 0:00:01]} a5 {[%emt 0:00:01]} 17. Nbd4 {[%emt 0:00:02]} Nxd4 {[%emt 0:00:09]} 18. Nxd4 {[%emt 0:00:01]} Qb6 {[%emt 0:00:09]} 19. e5 {[%emt 0:00:25]} dxe5 {[%emt 0:01:05]} 20. fxe5 {[%emt 0:00:12]} fxe5 {[%emt 0:00:01]} 21. Ne2 {[%emt 0:00:01]} Rd8 {[%emt 0:00:07]} 22. Qg5 {[%emt 0:00:05]} Qc7 {[%emt 0:00:10]} 23. Bxh5 {[%emt 0:00:04] Ke7 [%emt 00:00:55]} 1-0

[Event "Floripa Super Blitz 2019"]
[Site "Florianopolis"]
[Date "2019.01.23"]
[Round "9"]
[White "Cubas, Jose Fernando"]
[Black "Molina, Roberto Junio Brito"]
[Result "1-0"]
[ECO "D00"]
[WhiteElo "2506"]
[BlackElo "2458"]
[Annotator "ChessBase"]
[PlyCount "59"]
[EventDate "2019.01.23"]
[EventType "swiss"]
[EventCountry "BRA"]
[SourceTitle "playchess.com"]
[Source "ChessBase"]
[SourceQuality "1"]
[TimeControl "180+2"]

1. Nc3 {[%emt 0:00:00]} d5 {[%emt 0:00:00]} 2. d4 {[%emt 0:00:02]} Nf6 {[%emt 0:00:00]} 3. Bf4 {[%emt 0:00:02]} a6 {[%emt 0:00:01]} 4. f3 {[%emt 0:00:01]} e6 {[%emt 0:00:03]} 5. e3 {[%emt 0:00:38]} c5 {[%emt 0:00:02]} 6. Qd2 {[%emt 0:00:13]} Bd6 {[%emt 0:00:10]} 7. Nh3 {[%emt 0:00:04]} Nc6 {[%emt 0:00:03]} 8. Bxd6 {[%emt 0:00:05]} Qxd6 {[%emt 0:00:01]} 9. Nf4 {[%emt 0:00:02]} O-O {[%emt 0:00:12]} 10. Be2 {[%emt 0:00:05]} cxd4 {[%emt 0:00:14]} 11. exd4 {[%emt 0:00:01]} Nxd4 {[%emt 0:00:10]} 12. Qxd4 {[%emt 0:00:08]} e5 {[%emt 0:00:01]} 13. Qd2 {[%emt 0:00:03]} exf4 {[%emt 0:00:02]} 14. O-O-O {[%emt 0:00:02]} Be6 {[%emt 0:00:03]} 15. g4 {[%emt 0:00:05]} Rfd8 {[%emt 0:00:14]} 16. g5 {[%emt 0:00:07]} Ne8 {[%emt 0:00:17]} 17. Bd3 {[%emt 0:00:02]} b5 {[%emt 0:00:04]} 18. Ne2 {[%emt 0:00:01]} b4 {[%emt 0:00:30]} 19. Nxf4 {[%emt 0:00:02]} a5 {[%emt 0:00:06]} 20. h4 {[%emt 0:00:02]} a4 {[%emt 0:00:06]} 21. Kb1 {[%emt 0:00:22]} d4 {[%emt 0:00:08]} 22. Nxe6 {[%emt 0:00:03]} Qxe6 {[%emt 0:00:06]} 23. h5 {[%emt 0:00:11]} Qd6 {[%emt 0:00:15]} 24. g6 {[%emt 0:00:15]} fxg6 {[%emt 0:00:02]} 25. Bc4+ {[%emt 0:00:03]} Kf8 {[%emt 0:00:04]} 26. hxg6 {[%emt 0:00:02]} h6 {[%emt 0:00:01]} 27. Rxh6 {[%emt 0:00:09]} gxh6 {[%emt 0:00:32]} 28. Qxh6+ {[%emt 0:00:01]} Ke7 {[%emt 0:00:01]} 29. Qh7+ {[%emt 0:00:05]} Kf6 {[%emt 0:00:09]} 30. Qf7+ {[%emt 0:00:17]} 1-0

[Event "Floripa Super Blitz 2019"]
[Site "Florianopolis"]
[Date "2019.01.23"]
[Round "9"]
[White "Souza, Iago Henrique da Si"]
[Black "Quintiliano Pinto, Renato R."]
[Result "1-0"]
[ECO "D05"]
[WhiteElo "2060"]
[BlackElo "2441"]
[Annotator "NA"]
[PlyCount "83"]
[EventDate "2019.01.23"]
[EventType "swiss"]
[EventCountry "BRA"]
[SourceTitle "playchess.com"]
[Source "ChessBase"]
[SourceQuality "1"]
[TimeControl "180+2"]

1. d4 {[%emt 0:00:00]} Nf6 {[%emt 0:00:00]} 2. Nf3 {[%emt 0:00:01]} e6 {[%emt 0:00:01]} 3. e3 {[%emt 0:00:02]} c5 {[%emt 0:00:02]} 4. Bd3 {[%emt 0:00:02]} Nc6 {[%emt 0:00:01]} 5. O-O {[%emt 0:00:02]} d5 {[%emt 0:00:02]} 6. b3 {[%emt 0:00:03]} Bd6 {[%emt 0:00:02]} 7. Nbd2 {[%emt 0:00:01]} O-O {[%emt 0:00:12]} 8. Bb2 {[%emt 0:00:00]} Qe7 {[%emt 0:00:07]} 9. c4 {[%emt 0:00:09]} cxd4 {[%emt 0:00:18]} 10. exd4 {[%emt 0:00:08]} b6 {[%emt 0:00:04]} 11. Rc1 {[%emt 0:00:05]} Bb7 {[%emt 0:00:01]} 12. Re1 {[%emt 0:00:02]} Ba3 {[%emt 0:00:14]} 13. Qc2 {[%emt 0:00:11]} Bxb2 {[%emt 0:00:04]} 14. Qxb2 {[%emt 0:00:01]} Rfd8 {[%emt 0:00:07]} 15. c5 {[%emt 0:00:19]} a5 {[%emt 0:00:22]} 16. cxb6 {[%emt 0:00:26]} Qb4 {[%emt 0:00:03]} 17. Qc3 {[%emt 0:00:19]} Qxb6 {[%emt 0:00:02]} 18. Qc5 {[%emt 0:00:05]} Qxc5 {[%emt 0:00:15]} 19. Rxc5 {[%emt 0:00:01]} Nd7 {[%emt 0:00:15]} 20. Rcc1 {[%emt 0:00:06]} Nb4 {[%emt 0:00:13]} 21. Bb1 {[%emt 0:00:08]} Rdc8 {[%emt 0:00:18]} 22. a3 {[%emt 0:00:10]} Nc6 {[%emt 0:00:01]} 23. Bd3 {[%emt 0:00:08]} Na7 {[%emt 0:00:14]} 24. h3 {[%emt 0:00:13]} h6 {[%emt 0:00:03]} 25. Nb1 {[%emt 0:00:22]} Bc6 {[%emt 0:00:04]} 26. Rc2 {[%emt 0:00:09]} Bb5 {[%emt 0:00:03]} 27. Rxc8+ {[%emt 0:00:04]} Rxc8 {[%emt 0:00:01]} 28. Bxb5 {[%emt 0:00:09]} Nxb5 {[%emt 0:00:01]} 29. a4 {[%emt 0:00:02]} Nd6 {[%emt 0:00:07]} 30. Nfd2 {[%emt 0:00:16]} Rc2 {[%emt 0:00:02]} 31. f3 {[%emt 0:00:04]} Nf5 {[%emt 0:00:02]} 32. Kf2 {[%emt 0:00:06]} Nxd4 {[%emt 0:00:01]} 33. Ke3 {[%emt 0:00:01]} Nc6 {[%emt 0:00:03]} 34. Kd3 {[%emt 0:00:01]} Nb4+ {[%emt 0:00:01]} 35. Ke3 {[%emt 0:00:02]} Nc5 {[%emt 0:00:23]} 36. Kd4 {[%emt 0:00:09]} Nc6+ {[%emt 0:00:09]} 37. Ke3 {[%emt 0:00:00]} d4+ {[%emt 0:00:02]} 38. Ke2 {[%emt 0:00:02]} Nb4 {[%emt 0:00:03]} 39. Na3 {[%emt 0:00:03]} Ra2 {[%emt 0:00:03]} 40. Nac4 {[%emt 0:00:01]} Nxb3 {[%emt 0:00:01]} 41. Rd1 {[%emt 0:00:02]} f6 {[%emt 0:00:06]} 42. Ke1 {[%emt 0:00:01]} 1-0

[Event "Floripa Super Blitz 2019"]
[Site "Florianopolis"]
[Date "2019.01.23"]
[Round "10"]
[White "Stamenkovic, Dragan"]
[Black "Januario, Severino Pereira"]
[Result "1-0"]
[ECO "A44"]
[WhiteElo "2378"]
[BlackElo "2173"]
[Annotator "NA"]
[PlyCount "93"]
[EventDate "2019.01.23"]
[EventType "swiss"]
[EventCountry "BRA"]
[SourceTitle "playchess.com"]
[Source "ChessBase"]
[SourceQuality "1"]
[TimeControl "180+2"]

1. d4 {[%emt 0:00:00]} c5 {[%emt 0:00:00]} 2. d5 {[%emt 0:00:01]} e5 {[%emt 0:00:01]} 3. Nc3 {[%emt 0:00:06]} d6 {[%emt 0:00:02]} 4. e4 {[%emt 0:00:02]} Nf6 {[%emt 0:00:01]} 5. Bb5+ {[%emt 0:00:07]} Nbd7 {[%emt 0:00:01]} 6. a4 {[%emt 0:00:01]} a6 {[%emt 0:00:02]} 7. Bd3 {[%emt 0:00:01]} Be7 {[%emt 0:00:01]} 8. Nf3 {[%emt 0:00:01]} Nf8 {[%emt 0:00:01]} 9. Nd2 {[%emt 0:00:06]} Ng6 {[%emt 0:00:01]} 10. Nc4 {[%emt 0:00:01]} Qc7 {[%emt 0:00:02]} 11. a5 {[%emt 0:00:05]} Bd7 {[%emt 0:00:02]} 12. Nb6 {[%emt 0:00:04]} Rb8 {[%emt 0:00:04]} 13. O-O {[%emt 0:00:02]} O-O {[%emt 0:00:07]} 14. b3 {[%emt 0:00:01]} Be8 {[%emt 0:00:05]} 15. Be3 {[%emt 0:00:14]} Nd7 {[%emt 0:00:02]} 16. Nc4 {[%emt 0:00:05]} Nf4 {[%emt 0:00:16]} 17. Qd2 {[%emt 0:00:10]} Nxd3 {[%emt 0:00:03]} 18. Qxd3 {[%emt 0:00:03]} Nf6 {[%emt 0:00:01]} 19. Nb6 {[%emt 0:00:08]} Nd7 {[%emt 0:00:03]} 20. Nc4 {[%emt 0:00:05]} f6 {[%emt 0:00:01]} 21. Ne2 {[%emt 0:00:19]} Bg6 {[%emt 0:00:02]} 22. Ng3 {[%emt 0:00:01]} Rf7 {[%emt 0:00:17]} 23. Bd2 {[%emt 0:00:04]} Rbf8 {[%emt 0:00:02]} 24. Ne3 {[%emt 0:00:02]} h6 {[%emt 0:00:17]} 25. h4 {[%emt 0:00:03]} Bh7 {[%emt 0:00:03]} 26. h5 {[%emt 0:00:01]} Rc8 {[%emt 0:00:07]} 27. Qc4 {[%emt 0:00:21]} Kh8 {[%emt 0:00:02]} 28. Ngf5 {[%emt 0:00:07]} Rcf8 {[%emt 0:00:17]} 29. g4 {[%emt 0:00:01]} Bd8 {[%emt 0:00:01]} 30. f3 {[%emt 0:00:01]} b5 {[%emt 0:00:04]} 31. axb6 {[%emt 0:00:01]} Nxb6 {[%emt 0:00:04]} 32. Qxa6 {[%emt 0:00:01]} Bxf5 {[%emt 0:00:08]} 33. gxf5 {[%emt 0:00:02]} c4 {[%emt 0:00:14]} 34. Nxc4 {[%emt 0:00:02]} Nxc4 {[%emt 0:00:04]} 35. Qxc4 {[%emt 0:00:03]} Qb6+ {[%emt 0:00:01]} 36. Kg2 {[%emt 0:00:02]} Rc7 {[%emt 0:00:01]} 37. Qd3 {[%emt 0:00:01]} Qb7 {[%emt 0:00:09]} 38. Be3 {[%emt 0:00:06]} Qc8 {[%emt 0:00:05]} 39. c4 {[%emt 0:00:02]} Be7 {[%emt 0:00:02]} 40. Ra4 {[%emt 0:00:07]} Qe8 {[%emt 0:00:01]} 41. Rh1 {[%emt 0:00:02]} Qf7 {[%emt 0:00:00]} 42. Ra7 {[%emt 0:00:04]} Rfc8 {[%emt 0:00:02]} 43. Rxc7 {[%emt 0:00:01]} Rxc7 {[%emt 0:00:00]} 44. b4 {[%emt 0:00:07]} Qe8 {[%emt 0:00:02]} 45. Qa3 {[%emt 0:00:02]} Rxc4 {[%emt 0:00:03]} 46. Rc1 {[%emt 0:00:10]} Rxc1 47. Qxc1 {[%emt 0:00:01]} 1-0

[Event "Floripa Super Blitz 2019"]
[Site "Florianopolis"]
[Date "2019.01.23"]
[Round "10"]
[White "Do Nascimento, Christian Almeida"]
[Black "Molina, Roberto Junio Brito"]
[Result "0-1"]
[ECO "A03"]
[WhiteElo "2029"]
[BlackElo "2458"]
[Annotator "RC"]
[PlyCount "140"]
[EventDate "2019.01.23"]
[EventType "swiss"]
[EventCountry "BRA"]
[SourceTitle "playchess.com"]
[Source "ChessBase"]
[SourceQuality "1"]
[TimeControl "180+2"]

1. d4 {[%emt 0:00:01]} d5 {[%emt 0:00:00]} 2. e3 {[%emt 0:00:03]} Nf6 {[%emt 0:00:03]} 3. f4 {[%emt 0:00:02]} g6 {[%emt 0:00:03]} 4. Nf3 {[%emt 0:00:02]} Bg7 {[%emt 0:00:02]} 5. Bd3 {[%emt 0:00:02]} b6 {[%emt 0:00:01]} 6. c3 {[%emt 0:00:02]} O-O {[%emt 0:00:02]} 7. Ne5 {[%emt 0:00:02]} Ba6 {[%emt 0:00:02]} 8. O-O {[%emt 0:00:03]} Qc8 {[%emt 0:00:04]} 9. Bxa6 {[%emt 0:00:19]} Qxa6 {[%emt 0:00:02]} 10. Nd2 {[%emt 0:00:03]} c5 {[%emt 0:00:02]} 11. Ndf3 {[%emt 0:00:02]} e6 {[%emt 0:00:16]} 12. Bd2 {[%emt 0:00:14]} Qb7 {[%emt 0:00:08]} 13. Be1 {[%emt 0:00:03]} Nc6 {[%emt 0:00:01]} 14. Bh4 {[%emt 0:00:03]} Ne4 {[%emt 0:00:03]} 15. Nd2 {[%emt 0:00:12]} Nd6 {[%emt 0:00:11]} 16. Nxc6 {[%emt 0:00:03]} Qxc6 {[%emt 0:00:01]} 17. Be7 {[%emt 0:00:01]} Rfe8 {[%emt 0:00:02]} 18. Bxd6 {[%emt 0:00:02]} Qxd6 {[%emt 0:00:01]} 19. Nf3 {[%emt 0:00:03]} b5 {[%emt 0:00:03]} 20. Qd3 {[%emt 0:00:01]} Rab8 {[%emt 0:00:04]} 21. a3 {[%emt 0:00:06]} a5 {[%emt 0:00:02]} 22. Ne5 {[%emt 0:00:23]} Rb7 {[%emt 0:00:14]} 23. Rf3 {[%emt 0:00:18]} b4 {[%emt 0:00:11]} 24. axb4 {[%emt 0:00:02]} axb4 {[%emt 0:00:01]} 25. Ra6 {[%emt 0:00:02]} Qf8 {[%emt 0:00:15]} 26. h3 {[%emt 0:00:13]} bxc3 {[%emt 0:00:04]} 27. bxc3 {[%emt 0:00:01]} Qe7 {[%emt 0:00:18]} 28. Rf1 {[%emt 0:00:11]} Rc8 {[%emt 0:00:04]} 29. Rfa1 {[%emt 0:00:07]} Rbc7 {[%emt 0:00:10]} 30. Ra8 {[%emt 0:00:05]} Bxe5 {[%emt 0:00:22]} 31. fxe5 {[%emt 0:00:02]} cxd4 {[%emt 0:00:07]} 32. cxd4 {[%emt 0:00:04]} Kg7 {[%emt 0:00:11]} 33. Rxc8 {[%emt 0:00:12]} Rxc8 {[%emt 0:00:00]} 34. Rf1 {[%emt 0:00:09]} Qg5 {[%emt 0:00:07]} 35. Rf4 {[%emt 0:00:09]} Qg3 {[%emt 0:00:08]} 36. Rf3 {[%emt 0:00:21]} Rc1+ {[%emt 0:00:04]} 37. Rf1 {[%emt 0:00:00]} Rxf1+ {[%emt 0:00:23]} 38. Kxf1 {[%emt 0:00:02]} h5 {[%emt 0:00:03]} 39. Qe2 {[%emt 0:00:09]} g5 {[%emt 0:00:12]} 40. Qxh5 {[%emt 0:00:07]} Qxe3 {[%emt 0:00:00]} 41. Qg4 {[%emt 0:00:02]} Kg6 {[%emt 0:00:08]} 42. g3 {[%emt 0:00:11]} Qc1+ {[%emt 0:00:03]} 43. Kg2 {[%emt 0:00:01]} Qc2+ {[%emt 0:00:01]} 44. Kg1 {[%emt 0:00:01]} Qf5 {[%emt 0:00:02]} 45. Kg2 {[%emt 0:00:05]} Qxg4 {[%emt 0:00:03]} 46. hxg4 {[%emt 0:00:01]} f6 {[%emt 0:00:01]} 47. Kf3 {[%emt 0:00:02]} fxe5 {[%emt 0:00:04]} 48. dxe5 {[%emt 0:00:01]} Kf7 {[%emt 0:00:00]} 49. Ke3 {[%emt 0:00:01]} Ke7 50. Kd4 {[%emt 0:00:01]} Kd7 {[%emt 0:00:01]} 51. Kc5 {[%emt 0:00:00]} Kc7 {[%emt 0:00:01]} 52. Kb5 {[%emt 0:00:01]} Kb7 {[%emt 0:00:02]} 53. Kc5 {[%emt 0:00:04]} Kc7 {[%emt 0:00:02]} 54. Kb5 {[%emt 0:00:01]} Kc8 {[%emt 0:00:01]} 55. Kc5 {[%emt 0:00:02]} Kd7 {[%emt 0:00:03]} 56. Kb5 {[%emt 0:00:02]} Kd8 {[%emt 0:00:03]} 57. Kc5 {[%emt 0:00:01]} Kc7 {[%emt 0:00:00]} 58. Kb5 {[%emt 0:00:01]} Kb7 {[%emt 0:00:02]} 59. Kc5 {[%emt 0:00:01]} Ka6 {[%emt 0:00:03]} 60. Kd6 {[%emt 0:00:01]} d4 {[%emt 0:00:01]} 61. Kxe6 {[%emt 0:00:01]} d3 {[%emt 0:00:00]} 62. Kf7 {[%emt 0:00:02]} d2 {[%emt 0:00:01]} 63. e6 {[%emt 0:00:01]} d1=Q {[%emt 0:00:02]} 64. e7 {[%emt 0:00:01]} Qf3+ {[%emt 0:00:04]} 65. Kg7 {[%emt 0:00:07]} Qe4 {[%emt 0:00:04]} 66. Kf7 {[%emt 0:00:05]} Qd5+ {[%emt 0:00:02]} 67. Kg7 {[%emt 0:00:02]} Qe6 {[%emt 0:00:02]} 68. Kf8 {[%emt 0:00:03]} Qf6+ {[%emt 0:00:02]} 69. Ke8 {[%emt 0:00:00]} Kb7 {[%emt 0:00:01]} 70. Kd7 {[%emt 0:00:01]} Qc6+ {[%emt 0:00:01]} 0-1

[Event "Floripa Super Blitz 2019"]
[Site "Florianopolis"]
[Date "2019.01.23"]
[Round "11"]
[White "Lopes Fo, Jorge Antonio Ferre"]
[Black "Menna Barreto, Luiz Ney"]
[Result "1/2-1/2"]
[ECO "E01"]
[WhiteElo "2122"]
[BlackElo "2327"]
[Annotator "NA"]
[PlyCount "53"]
[EventDate "2019.01.23"]
[EventType "swiss"]
[EventCountry "BRA"]
[SourceTitle "playchess.com"]
[Source "ChessBase"]
[SourceQuality "1"]
[TimeControl "180+2"]

1. d4 {[%emt 0:00:00]} Nf6 {[%emt 0:00:00]} 2. c4 {[%emt 0:00:01]} e6 {[%emt 0:00:00]} 3. g3 {[%emt 0:00:01]} d5 {[%emt 0:00:01]} 4. Bg2 {[%emt 0:00:01]} c6 {[%emt 0:00:01]} 5. Qc2 {[%emt 0:00:04]} Bd6 {[%emt 0:00:08]} 6. Nd2 {[%emt 0:00:01]} O-O {[%emt 0:00:03]} 7. Ngf3 {[%emt 0:00:01]} Nbd7 {[%emt 0:00:03]} 8. O-O {[%emt 0:00:02]} Re8 {[%emt 0:00:21]} 9. e4 {[%emt 0:00:04]} dxe4 {[%emt 0:00:02]} 10. Nxe4 {[%emt 0:00:01]} Nxe4 {[%emt 0:00:01]} 11. Qxe4 {[%emt 0:00:02]} Nf6 {[%emt 0:00:01]} 12. Qc2 {[%emt 0:00:01]} Qc7 {[%emt 0:00:04]} 13. c5 {[%emt 0:00:42]} Bf8 {[%emt 0:00:06]} 14. Bf4 {[%emt 0:00:01]} Qd8 {[%emt 0:00:16]} 15. Rfe1 {[%emt 0:00:05]} Nd5 {[%emt 0:00:02]} 16. Bd2 {[%emt 0:00:02]} Be7 {[%emt 0:00:03]} 17. Rad1 {[%emt 0:00:01]} Bf6 {[%emt 0:00:01]} 18. Ne5 {[%emt 0:00:03]} Bxe5 {[%emt 0:00:12]} 19. Rxe5 {[%emt 0:00:01]} Qe7 {[%emt 0:00:23]} 20. Rde1 {[%emt 0:00:09]} Bd7 {[%emt 0:00:12]} 21. Bxd5 {[%emt 0:00:28]} cxd5 {[%emt 0:00:01]} 22. R5e2 {[%emt 0:00:04]} Bc6 {[%emt 0:00:07]} 23. h4 {[%emt 0:00:06]} Qf6 {[%emt 0:00:13]} 24. Qc3 {[%emt 0:00:06]} Qg6 {[%emt 0:00:13]} 25. Bf4 {[%emt 0:00:07]} a6 {[%emt 0:00:04]} 26. Qc2 {[%emt 0:00:04]} Qxc2 {[%emt 0:00:03]} 27. Rxc2 {[%emt 0:00:05]} 1/2-1/2